bitfinex/quotes_SOLUSD_20250410
["timestamp","ask_amount","ask_price","bid_price","bid_amount"]
[1744311398673,31.6001,110.98,110.95,25.37157994]
[1744311399052,31.6001,110.98,110.94,25.37157994]
[1744311399265,25.37157994,110.97,110.93,25.37157994]
[1744311400479,9.0122,110.96,110.93,25.37157994]
[1744311400852,31.5428,110.96,110.92,10.02]
[1744311401158,31.5428,110.96,110.92,35.39157994]
[1744311401354,9.0122,110.96,110.94,25.37157994]
[1744311401677,9.0122,110.96,110.95,25.37157994]
[1744311402467,25.37157994,110.97,110.92,10.02]
[1744311402784,25.37157994,110.96,110.92,35.39157994]
[1744311403160,25.37157994,110.96,110.92,10.02]
[1744311403355,25.37157994,110.96,110.92,35.39157994]
[1744311403659,76.6539,110.98,110.92,35.39157994]
[1744311403855,25.37157994,110.96,110.92,35.39157994]
[1744311404055,25.37157994,110.97,110.92,35.39157994]
[1744311404271,25.37157994,110.96,110.92,35.39157994]
[1744311404663,9.013,110.95,110.92,35.39157994]
[1744311407262,9.013,110.95,110.92,10.02]
[1744311407458,31.5456,110.95,110.92,10.02]
[1744311407663,56.91717994,110.95,110.92,10.02]
[1744311407859,56.91717994,110.95,110.91,25.37157994]
[1744311408374,25.37157994,110.94,110.9,25.37157994]
[1744311408784,9.0138,110.94,110.91,25.37157994]
[1744311408967,9.0138,110.94,110.92,25.37157994]
[1744311409169,9.0138,110.94,110.91,25.37157994]
[1744311409378,9.0138,110.94,110.89,35.71902314]
[1744311409577,9.0138,110.94,110.91,25.37157994]
[1744311409959,25.37157994,110.96,110.91,25.37157994]
[1744311410883,25.37157994,110.95,110.91,25.37157994]
[1744311411185,25.37157994,110.96,110.92,25.37157994]
[1744311411386,25.37157994,110.96,110.91,25.37157994]
[1744311411859,9.0138,110.94,110.92,25.37157994]
[1744311413179,9.013,110.95,110.92,25.37157994]
[1744311414968,9.013,110.95,110.93,25.37157994]
[1744311415286,31.5442,110.96,110.93,25.37157994]
[1744311415685,9.0122,110.96,110.91,27.80801043]
[1744311415986,9.0122,110.96,110.95,25.37157994]
[1744311416190,0.063,110.98,110.95,25.37157994]
[1744311416372,0.063,110.98,110.97,25.37157994]
[1744311416885,9.0736,110.98,110.97,25.37157994]
[1744311417363,0.063,110.98,110.95,19.07613357]
[1744311417563,0.063,110.98,110.97,25.37157994]
[1744311418173,0.063,110.98,110.97,44.44771351]
[1744311419976,0.063,110.98,110.97,53.45911351]
[1744311420376,0.063,110.98,110.97,44.44771351]
[1744311420578,0.063,110.98,110.97,73.45911351]
[1744311420783,0.063,110.98,110.97,75.10111351]
[1744311421176,0.063,110.98,110.97,66.08971351]
[1744311421377,0.063,110.98,110.97,75.10111351]
[1744311421592,0.063,110.98,110.97,66.08971351]
[1744311421893,0.063,110.98,110.97,75.10111351]
[1744311423672,0.063,110.98,110.97,156.10111351]
[1744311424305,0.03,111.0,110.99,77.26085988]
[1744311424481,0.03,111.0,110.99,87.28085988]
[1744311425401,0.03,111.0,110.99,70.91907994]
[1744311426103,0.03,111.0,110.99,96.29065988]
[1744311426304,0.03,111.0,110.99,70.91907994]
[1744311427594,0.03,111.0,110.99,60.98541351]
[1744311427793,0.03,111.0,110.99,10.02]
[1744311428309,0.03,111.0,110.99,35.39157994]
[1744311428890,0.03,111.0,110.99,54.46771351]
[1744311429097,0.03,111.0,110.99,83.47751351]
[1744311429306,0.03,111.0,110.99,29.09613357]
[1744311429506,0.03,111.0,110.99,54.46771351]
[1744311431284,0.03,111.0,110.99,63.47751351]
[1744311431485,0.03,111.0,110.99,45.2863124]
[1744311431688,0.03,111.0,110.99,74.2961124]
[1744311431992,0.03,111.0,110.99,75.9220124]
[1744311432207,0.03,111.0,110.99,156.9220124]
[1744311432416,0.03,111.0,110.99,221.68272772]
[1744311432794,0.03,111.02,111.01,20.0]
[1744311432998,0.03,111.02,111.01,36.19017883]
[1744311433605,0.03,111.02,111.01,54.29441158]
[1744311435812,0.03,111.02,111.01,60.77831158]
[1744311437319,0.03,111.02,111.01,160.85444515]
[1744311438831,0.03,111.02,111.01,129.08423357]
[1744311439124,0.03,111.02,111.01,145.07812201]
[1744311439282,0.03,111.02,111.01,145.36244515]
[1744311441510,0.03,111.02,111.01,120.07613357]
[1744311441812,0.03,111.02,111.01,145.36244515]
[1744311443219,0.03,111.02,111.01,154.37054515]
[1744311443914,0.03,111.02,111.01,120.07613357]
[1744311444122,0.03,111.02,111.01,145.36244515]
[1744311444990,0.03,111.02,111.01,120.07613357]
[1744311445918,0.03,111.02,111.01,48.08423357]
[1744311446291,0.03,111.02,111.01,73.37054515]
[1744311449343,0.03,111.02,111.01,48.08423357]
[1744311449498,0.03,111.02,111.01,73.37054515]
[1744311450420,0.03,111.02,111.01,64.36244515]
[1744311451933,0.03,111.02,111.01,39.07613357]
[1744311452230,0.03,111.02,110.99,120.0293]
[1744311452421,25.31631158,111.02,110.99,111.02]
[1744311452620,0.03,111.02,111.01,25.28631158]
[1744311452924,0.03,111.02,111.01,44.36244515]
[1744311453107,0.03,111.02,111.01,25.28631158]
[1744311453910,0.03,111.02,110.99,129.953972]
[1744311454111,0.03,111.02,111.0,25.28631158]
[1744311455528,0.03,111.02,111.0,16.19390217]
[1744311457034,0.03,111.02,110.99,30.02]
[1744311457236,0.03,111.02,111.01,16.19390217]
[1744311458329,0.03,111.02,110.99,30.02]
[1744311458519,0.03,111.02,111.0,16.19390217]
[1744311459031,46.5563,111.07,111.06,39.07613357]
[1744311459032,0.03,111.07,111.06,39.07613357]
[1744311459220,2.91438632,111.12,111.06,130.04564442]
[1744311459536,2.91438632,111.12,111.09,16.19390217]
[1744311460233,11.91368632,111.12,111.1,16.19390217]
[1744311461422,11.91368632,111.12,111.1,25.2560512]
[1744311464007,11.91368632,111.12,111.09,25.2560512]
[1744311464208,37.16973752,111.12,111.08,25.2560512]
[1744311464528,11.91368632,111.12,111.09,25.2560512]
[1744311465846,11.91368632,111.12,111.1,25.2560512]
[1744311466217,2.91438632,111.12,111.11,25.2560512]
[1744311466538,2.91438632,111.12,111.11,35.2360512]
[1744311471342,0.03,111.17,111.16,20.0]
[1744311471540,0.03,111.17,111.16,80.56588477]
[1744311473213,0.03,111.17,111.16,89.56188477]
[1744311476421,0.03,111.17,111.16,170.56188477]
[1744311479328,0.03,111.22,111.19,0.14216157]
[1744311479529,0.03,111.22,111.21,25.2560512]
[1744311480165,0.03,111.22,111.21,44.04786163]
[1744311480455,0.03,111.22,111.21,35.2360512]
[1744311481131,0.03,111.22,111.21,9.98]
[1744311481740,0.03,111.22,111.18,20.0]
[1744311482641,25.2860512,111.22,111.18,25.2560512]
[1744311482950,0.03,111.22,111.17,37.76651043]
[1744311483149,9.0211,111.22,111.18,25.2560512]
[1744311483654,9.0211,111.22,111.19,25.2560512]
[1744311484048,9.0211,111.22,111.18,25.2560512]
[1744311484858,34.2771512,111.22,111.17,28.77181043]
[1744311485042,25.2560512,111.2,111.17,9.98]
[1744311485362,25.2560512,111.2,111.15,8.9966]
[1744311485555,25.2560512,111.2,111.16,25.2560512]
[1744311486144,25.2560512,111.2,111.15,18.79181043]
[1744311486336,1.5857,111.21,111.17,25.2560512]
[1744311486556,25.2560512,111.2,111.15,18.79181043]
[1744311486869,25.2560512,111.2,111.16,25.2560512]
[1744311487059,8.9936,111.19,111.16,25.2560512]
[1744311488058,25.2560512,111.18,111.14,25.2560512]
[1744311488767,34.2496512,111.19,111.15,25.2560512]
[1744311488945,8.9936,111.19,111.16,25.2560512]
[1744311489564,8.9936,111.19,111.17,25.2560512]
[1744311489764,8.9936,111.19,111.16,25.2560512]
[1744311490264,8.9936,111.19,111.14,20.0]
[1744311490265,25.2560512,111.19,111.14,27.78941043]
[1744311490465,25.2560512,111.19,111.15,25.2560512]
[1744311491947,56.7308512,111.2,111.16,25.2560512]
[1744311493049,8.9928,111.2,111.17,25.2560512]
[1744311493569,10.5779,111.21,111.18,25.2560512]
[1744311493956,8.9922,111.21,111.19,25.2560512]
[1744311494473,9.0213,111.22,111.19,25.2560512]
[1744311494776,0.03,111.22,111.2,25.2560512]
[1744311496168,0.03,111.22,111.19,25.2560512]
[1744311496471,0.03,111.22,111.2,25.2560512]
[1744311497571,0.03,111.22,111.19,34.2495512]
[1744311498170,0.03,111.22,111.21,25.2560512]
[1744311498366,0.03,111.22,111.21,53.03976163]
[1744311499169,0.03,111.22,111.21,53.32408477]
[1744311499400,0.03,111.22,111.21,73.32408477]
[1744311500148,0.03,111.22,111.21,53.03976163]
[1744311500670,25.2560512,111.26,111.21,53.03976163]
[1744311500849,49.2852512,111.27,111.21,27.78371043]
[1744311501054,49.2852512,111.27,111.23,25.2560512]
[1744311501447,8.9879,111.26,111.23,25.2560512]
[1744311501850,34.2439512,111.26,111.22,25.2560512]
[1744311502049,25.2560512,111.25,111.21,25.2560512]
[1744311502476,8.9895,111.24,111.21,25.2560512]
[1744311502849,8.9895,111.24,111.19,129.06903357]
[1744311502850,34.2455512,111.24,111.19,99.79181043]
[1744311503051,25.2560512,111.23,111.19,125.04786163]
[1744311503276,25.2560512,111.23,111.19,44.04786163]
[1744311503447,25.2560512,111.23,111.19,25.2560512]
[1744311503954,56.7194512,111.24,111.2,25.2560512]
[1744311504977,25.2560512,111.23,111.18,9.96]
[1744311505178,25.2560512,111.23,111.19,25.2560512]
[1744311506083,25.2560512,111.23,111.18,18.9543]
[1744311506257,25.2560512,111.23,111.19,25.2560512]
[1744311506461,8.9911,111.22,111.19,25.2560512]
[1744311506975,34.2471512,111.22,111.18,35.2160512]
[1744311507268,8.9911,111.22,111.19,25.2560512]
[1744311507858,34.2471512,111.22,111.18,35.2160512]
[1744311508173,35.8989512,111.22,111.18,35.2160512]
[1744311508558,10.6429,111.22,111.19,25.2560512]
[1744311508877,8.9911,111.22,111.19,25.2560512]
[1744311509577,8.9895,111.24,111.21,25.2560512]
[1744311509891,34.2455512,111.24,111.2,25.2560512]
[1744311510058,25.2560512,111.23,111.19,25.2560512]
[1744311510458,8.9911,111.22,111.19,25.2560512]
[1744311513461,8.9907,111.23,111.2,25.2560512]
[1744311513962,34.2467512,111.23,111.19,25.2560512]
[1744311514260,8.9907,111.23,111.2,25.2560512]
[1744311514473,8.99,111.24,111.2,25.2560512]
[1744311514676,34.2460512,111.24,111.2,25.2560512]
[1744311515181,25.2560512,111.23,111.18,9.96]
[1744311515481,6.70954476,111.22,111.18,35.2160512]
[1744311516078,25.2560512,111.23,111.18,35.2160512]
[1744311516480,0.03,111.27,111.22,78.43821277]
[1744311516682,0.03,111.29,111.26,45.54037434]
[1744311516977,0.03,111.29,111.28,25.2560512]
[1744311517156,0.03,111.29,111.28,35.35821277]
[1744311517351,0.03,111.29,111.28,54.00786163]
[1744311518591,0.03,111.29,111.28,62.99416163]
[1744311520285,0.03,111.29,111.28,35.2160512]
[1744311520462,0.03,111.29,111.28,9.96]
[1744311520861,0.03,111.29,111.28,35.2160512]
[1744311521293,0.03,111.29,111.28,62.99416163]
[1744311522295,0.03,111.29,111.28,44.34451277]
[1744311522983,0.03,111.29,111.28,44.2023512]
[1744311523661,0.03,111.29,111.26,8.9876]
[1744311524084,0.03,111.29,111.26,34.2436512]
[1744311524285,0.03,111.29,111.27,25.2560512]
[1744311528277,0.03,111.29,111.27,34.2430512]
[1744311530190,0.03,111.29,111.27,25.2560512]
[1744311530495,0.03,111.29,111.25,8.9884]
[1744311530690,0.03,111.29,111.26,25.2560512]
[1744311531172,0.03,111.29,111.27,25.2560512]
[1744311531374,0.03,111.29,111.25,8.9884]
[1744311531573,25.2560512,111.27,111.22,8.9908]
[1744311531877,25.2560512,111.26,111.22,34.2468512]
[1744311532194,25.2560512,111.27,111.23,25.2560512]
[1744311532367,34.2423512,111.28,111.24,25.2560512]
[1744311533505,25.2560512,111.27,111.23,25.2560512]
[1744311534587,8.9879,111.26,111.24,25.2560512]
[1744311535877,8.9879,111.26,111.23,25.2560512]
[1744311536480,8.9879,111.26,111.24,25.2560512]
[1744311537108,34.2431512,111.27,111.23,25.2560512]
[1744311538991,34.2431512,111.27,111.22,8.9907]
[1744311539293,34.2431512,111.27,111.23,25.2560512]
[1744311540199,8.9871,111.27,111.24,25.2560512]
[1744311540910,8.9867,111.28,111.25,25.2560512]
[1744311541485,0.03,111.29,111.27,25.2560512]
[1744311542005,34.2716512,111.29,111.26,9.94]
[1744311542293,0.03,111.29,111.26,35.1960512]
[1744311542696,34.2715512,111.29,111.25,25.2560512]
[1744311542998,34.2715512,111.29,111.24,34.2455512]
[1744311542999,25.2560512,111.28,111.24,34.2455512]
[1744311543378,34.2715512,111.29,111.25,25.2560512]
[1744311544080,9.0155,111.29,111.27,25.2560512]
[1744311544285,9.0155,111.29,111.26,25.2560512]
[1744311544800,9.0155,111.29,111.27,25.2560512]
[1744311545501,9.0155,111.29,111.26,25.2560512]
[1744311546002,9.0155,111.29,111.27,25.2560512]
[1744311546003,0.03,111.29,111.27,25.2560512]
[1744311546498,0.03,111.29,111.26,25.2560512]
[1744311546878,0.03,111.29,111.26,34.2439512]
[1744311547378,0.03,111.29,111.26,25.2560512]
[1744311547894,25.2860512,111.29,111.24,8.9891]
[1744311548093,25.2860512,111.29,111.25,25.2560512]
[1744311548397,0.03,111.29,111.26,25.2560512]
[1744311548891,0.03,111.29,111.27,25.2560512]
[1744311549297,0.03,111.29,111.26,25.2560512]
[1744311551801,25.2860512,111.29,111.24,8.9892]
[1744311551988,25.2860512,111.29,111.25,25.2560512]
[1744311552391,0.03,111.29,111.26,25.2560512]
[1744311553182,0.03,111.29,111.27,25.2560512]
[1744311555419,0.03,111.29,111.26,25.2560512]
[1744311555781,0.03,111.29,111.26,35.1760512]
[1744311556308,0.03,111.29,111.27,25.2560512]
[1744311556489,0.03,111.29,111.28,25.2560512]
[1744311556798,0.03,111.34,111.32,0.14216157]
[1744311556988,0.03,111.34,111.33,35.1760512]
[1744311557184,0.03,111.34,111.33,53.96786163]
[1744311557403,0.03,111.34,111.33,82.95016163]
[1744311558010,0.03,111.34,111.33,55.1760512]
[1744311558185,0.03,111.34,111.33,64.1583512]
[1744311558382,0.03,111.34,111.33,9.92]
[1744311558804,0.03,111.34,111.33,35.1760512]
[1744311559514,0.03,111.34,111.33,44.1583512]
[1744311560311,0.03,111.34,111.33,35.1760512]
[1744311560508,0.03,111.34,111.33,9.92]
[1744311563417,0.03,111.34,111.31,25.2560512]
[1744311566090,25.2860512,111.34,111.3,333.4760512]
[1744311567315,8.9823,111.33,111.3,25.2560512]
[1744311567516,34.2383512,111.33,111.28,107.2459]
[1744311567715,25.2560512,111.32,111.28,25.2560512]
[1744311567902,26.7659512,111.32,111.28,25.2560512]
[1744311568423,9.0119,111.34,111.31,25.2560512]
[1744311568918,34.2679512,111.34,111.3,35.1760512]
[1744311569893,25.2560512,111.33,111.3,9.92]
[1744311571920,25.2560512,111.32,111.3,9.92]
[1744311572803,31.4656,111.34,111.3,9.92]
[1744311573006,25.2560512,111.33,111.3,9.92]
[1744311573329,25.2560512,111.32,111.28,25.2560512]
[1744311573521,8.9839,111.31,111.28,25.2560512]
[1744311574325,8.9835,111.32,111.29,25.2560512]
[1744311575713,25.2560512,111.32,111.28,25.2560512]
[1744311575908,25.2560512,111.3,111.26,25.2560512]
[1744311576402,25.2560512,111.3,111.25,28.9883]
[1744311576603,25.2560512,111.3,111.26,25.2560512]
[1744311577926,34.2415512,111.29,111.25,54.2443512]
[1744311578320,8.9855,111.29,111.25,28.9883]
[1744311578622,34.2415512,111.29,111.25,45.2560512]
[1744311579325,8.9855,111.29,111.26,25.2560512]
[1744311580329,34.2415512,111.29,111.25,54.2442512]
[1744311581333,34.2415512,111.29,111.25,45.2560512]
[1744311582332,8.9855,111.29,111.26,25.2560512]
[1744311582518,34.2415512,111.29,111.25,25.2560512]
[1744311583413,8.9855,111.29,111.26,25.2560512]
[1744311587315,8.9855,111.29,111.26,16.11741294]
[1744311587521,8.9855,111.29,111.25,9.9]
[1744311587722,25.10291294,111.29,111.25,26.01741294]
[1744311588640,16.11741294,111.28,111.25,9.9]
[1744311588842,8.9871,111.27,111.25,9.9]
[1744311591817,8.9871,111.27,111.25,35.09240287]
[1744311592227,8.9867,111.28,111.25,35.09240287]
[1744311593022,22.4638,111.29,111.25,35.09240287]
[1744311593221,47.65620287,111.29,111.25,35.09240287]
[1744311594446,25.19240287,111.28,111.25,9.9]
[1744311594644,8.9847,111.3,111.25,35.09240287]
[1744311594832,34.17710287,111.3,111.26,25.19240287]
[1744311595144,25.19240287,111.29,111.25,35.09240287]
[1744311595850,56.63890287,111.3,111.26,25.19240287]
[1744311596142,25.19240287,111.29,111.25,35.09240287]
[1744311596346,25.19240287,111.28,111.25,9.9]
[1744311596838,56.63890287,111.3,111.26,25.19240287]
[1744311599346,56.63890287,111.3,111.25,35.09240287]
[1744311599550,25.19240287,111.29,111.25,9.9]
[1744311600249,31.4465,111.3,111.25,9.9]
[1744311600541,56.63890287,111.3,111.26,25.19240287]
[1744311600758,25.19240287,111.29,111.23,20.0]
[1744311600931,25.19240287,111.26,111.21,20.063]
[1744311601123,26.0,111.25,111.21,0.063]
[1744311601327,60.18350287,111.22,111.21,0.063]
[1744311601546,8.9911,111.22,111.21,0.0001]
[1744311601754,34.18350287,111.22,111.21,0.0001]
[1744311601923,8.9903,111.23,111.21,0.0001]
[1744311602131,34.18270287,111.23,111.21,0.0001]
[1744311602426,8.9903,111.23,111.21,0.0001]
[1744311602622,34.18270287,111.23,111.21,0.0001]
[1744311602845,8.9903,111.23,111.21,0.0001]
[1744311603055,25.19240287,111.22,111.21,0.0001]
[1744311603553,60.18430287,111.21,111.2,0.0001]
[1744311604029,8.9919,111.21,111.2,0.0001]
[1744311604228,34.18430287,111.21,111.2,0.0001]
[1744311604623,8.9919,111.21,111.2,0.0001]
[1744311605025,8.9895,111.24,111.2,25.19250287]
[1744311605256,34.18190287,111.24,111.2,25.19250287]
[1744311605432,34.18190287,111.24,111.2,0.0001]
[1744311605631,8.9895,111.24,111.2,0.0001]
[1744311605840,25.19240287,111.22,111.2,0.0001]
[1744311606966,31.4634,111.24,111.2,25.19250287]
[1744311607129,8.9895,111.24,111.21,25.19240287]
[1744311607550,8.9895,111.24,111.22,25.19240287]
[1744311607741,8.9871,111.27,111.22,25.19240287]
[1744311607941,8.9871,111.27,111.24,25.19240287]
[1744311608145,34.17950287,111.27,111.23,25.19240287]
[1744311608351,8.9871,111.27,111.24,25.19240287]
[1744311609448,34.17780287,111.3,111.26,25.19240287]
[1744311609755,8.9854,111.3,111.27,25.19240287]
[1744311609935,20.60394534,111.34,111.28,25.19240287]
[1744311610253,34.17470287,111.33,111.29,25.19240287]
[1744311611659,25.19240287,111.3,111.25,9.92]
[1744311611979,25.19240287,111.3,111.25,18.9087]
[1744311612156,25.19240287,111.32,111.28,25.19240287]
[1744311612449,8.9823,111.33,111.3,25.19240287]
[1744311612658,8.9823,111.33,111.31,25.19240287]
[1744311612861,8.9823,111.33,111.3,9.9]
[1744311613064,9.0118,111.34,111.31,25.19240287]
[1744311613229,0.03,111.34,111.32,25.19240287]
[1744311613434,0.03,111.34,111.3,16.2969]
[1744311613747,0.03,111.34,111.31,25.19240287]
[1744311614443,25.22240287,111.34,111.3,6.3969]
[1744311614651,0.03,111.34,111.3,31.58930287]
[1744311615553,25.22240287,111.34,111.3,31.58930287]
[1744311615957,0.03,111.34,111.3,31.58930287]
[1744311616136,25.22240287,111.34,111.3,25.19240287]
[1744311616832,0.03,111.34,111.31,25.19240287]
[1744311617051,0.03,111.34,111.32,25.19240287]
[1744311617352,0.03,111.34,111.33,25.19240287]
[1744311617556,0.03,111.34,111.3,35.09240287]
[1744311618249,25.19240287,111.33,111.3,9.9]
[1744311619332,25.19240287,111.32,111.3,9.9]
[1744311619532,34.17600287,111.32,111.3,9.9]
[1744311619826,8.9836,111.32,111.3,9.9]
[1744311620250,8.9836,111.32,111.3,35.09240287]
[1744311620654,8.9826,111.33,111.3,35.09240287]
[1744311620856,25.22240287,111.34,111.32,25.19240287]
[1744311620857,0.03,111.34,111.32,25.19240287]
[1744311621156,9.0116,111.34,111.31,25.19240287]
[1744311621360,9.0116,111.34,111.32,25.19240287]
[1744311621734,0.03,111.34,111.32,25.19240287]
[1744311622462,0.03,111.34,111.33,31.65530287]
[1744311623267,0.03,111.34,111.33,52.28103644]
[1744311623856,0.03,111.34,111.33,61.26333644]
[1744311625152,0.03,111.38,111.37,20.14216157]
[1744311625467,0.03,111.38,111.37,74.14853644]
[1744311625668,0.03,111.38,111.37,83.12753644]
[1744311626538,0.03,111.38,111.37,64.19356444]
[1744311626735,0.03,111.38,111.37,55.21456444]
[1744311627146,0.03,111.38,111.37,64.19356444]
[1744311627842,0.03,111.38,111.37,83.12753644]
[1744311628257,31.3993,111.47,111.4,20.14216157]
[1744311628447,56.59170287,111.47,111.42,25.19240287]
[1744311628766,25.19240287,111.46,111.42,9.88]
[1744311628940,25.19240287,111.45,111.42,9.88]
[1744311629141,25.19240287,111.46,111.42,35.07240287]
[1744311629749,8.9726,111.45,111.42,35.07240287]
[1744311629945,8.9726,111.45,111.43,25.19240287]
[1744311630640,8.9726,111.45,111.42,9.88]
[1744311630846,8.9726,111.45,111.43,25.19240287]
[1744311631471,31.3937,111.49,111.44,25.19240287]
[1744311631667,25.19240287,111.47,111.42,9.88]
[1744311631854,25.19240287,111.47,111.43,25.19240287]
[1744311631855,8.9718,111.46,111.43,25.19240287]
[1744311632050,34.16420287,111.46,111.42,35.07240287]
[1744311632269,8.9718,111.46,111.43,25.19240287]
[1744311632564,8.9718,111.46,111.45,25.19240287]
[1744311633042,8.9718,111.46,111.42,29.88]
[1744311633243,8.9718,111.46,111.43,25.19240287]
[1744311634351,52.17020009,111.52,111.44,25.19240287]
[1744311634352,8.9702,111.48,111.44,25.19240287]
[1744311634559,34.16260287,111.48,111.44,25.19240287]
[1744311636569,34.16260287,111.48,111.42,29.88]
[1744311636762,34.16260287,111.48,111.44,25.19240287]
[1744311636975,8.9702,111.48,111.44,25.19240287]
[1744311637165,34.16260287,111.48,111.44,25.19240287]
[1744311637673,8.9702,111.48,111.45,25.19240287]
[1744311637875,0.03,111.5,111.46,25.19240287]
[1744311638072,25.22240287,111.5,111.45,25.19240287]
[1744311638368,25.22240287,111.5,111.44,6.0383]
[1744311638369,0.03,111.5,111.46,25.19240287]
[1744311638565,25.22240287,111.5,111.44,35.0114]
[1744311638767,25.19240287,111.49,111.45,25.19240287]
[1744311639574,25.19240287,111.48,111.44,31.23070287]
[1744311639781,25.19240287,111.49,111.45,25.19240287]
[1744311639950,8.9702,111.48,111.46,25.19240287]
[1744311640465,8.9702,111.48,111.44,6.0383]
[1744311640668,8.9702,111.48,111.45,25.19240287]
[1744311640856,8.9702,111.48,111.46,25.19240287]
[1744311641476,8.9698,111.49,111.46,25.19240287]
[1744311641981,8.9986,111.5,111.46,25.19240287]
[1744311642170,8.9986,111.5,111.47,25.19240287]
[1744311642980,8.9986,111.5,111.48,25.19240287]
[1744311643155,8.9986,111.5,111.45,10.4833]
[1744311643478,8.9986,111.5,111.47,25.19240287]
[1744311643678,8.9986,111.5,111.48,25.19240287]
[1744311643679,0.03,111.5,111.48,25.19240287]
[1744311643861,0.03,111.5,111.49,25.19240287]
[1744311644059,0.03,111.5,111.48,25.19240287]
[1744311644576,0.03,111.5,111.47,35.05240287]
[1744311645472,25.22240287,111.5,111.47,9.86]
[1744311646162,8.9694,111.49,111.47,9.86]
[1744311646363,34.16180287,111.49,111.47,9.86]
[1744311646558,8.9694,111.49,111.47,9.86]
[1744311647164,34.16180287,111.49,111.47,9.86]
[1744311647778,8.9694,111.49,111.47,9.86]
[1744311648477,34.16180287,111.49,111.47,9.86]
[1744311649175,34.16180287,111.49,111.45,25.19240287]
[1744311649673,8.9694,111.49,111.46,25.19240287]
[1744311650264,8.9694,111.49,111.44,35.0117]
[1744311650265,34.16180287,111.49,111.44,35.0117]
[1744311650581,34.16180287,111.49,111.46,25.19240287]
[1744311650963,8.9694,111.49,111.44,35.0117]
[1744311651274,34.16180287,111.49,111.46,25.19240287]
[1744311651652,8.9694,111.49,111.46,25.19240287]
[1744311652479,25.19240287,111.49,111.46,25.19240287]
[1744311652789,25.22240287,111.5,111.46,25.19240287]
[1744311652953,0.03,111.5,111.48,25.19240287]
[1744311653377,0.03,111.5,111.49,25.19240287]
[1744311653779,0.03,111.5,111.48,35.05240287]
[1744311654488,34.19170287,111.5,111.45,8.9726]
[1744311654785,25.19240287,111.49,111.45,34.16500287]
[1744311655661,34.16180287,111.49,111.46,25.19240287]
[1744311656483,34.16180287,111.49,111.45,34.16500287]
[1744311656997,8.9694,111.49,111.45,8.9726]
[1744311657164,8.9694,111.49,111.46,25.19240287]
[1744311657885,34.16180287,111.49,111.45,8.9726]
[1744311658180,34.16180287,111.49,111.45,34.16500287]
[1744311658373,34.16180287,111.49,111.46,25.19240287]
[1744311658794,8.9694,111.49,111.46,25.19240287]
[1744311659582,25.19240287,111.49,111.45,8.9726]
[1744311659769,25.19240287,111.49,111.4,25.19240287]
[1744311659770,25.19240287,111.46,111.4,25.19240287]
[1744311659978,25.19240287,111.42,111.38,64.03020287]
[1744311660284,6.4911,111.45,111.39,25.19240287]
[1744311660583,6.4911,111.45,111.4,25.19240287]
[1744311660994,33.18950287,111.48,111.41,25.19240287]
[1744311661284,25.19240287,111.44,111.4,25.19240287]
[1744311661875,8.9742,111.43,111.4,25.19240287]
[1744311662184,8.9742,111.43,111.38,38.8382]
[1744311662185,25.19240287,111.42,111.38,55.05240287]
[1744311662994,25.19240287,111.4,111.35,20.0]
[1744311663171,25.19240287,111.39,111.35,25.19240287]
[1744311663694,25.19240287,111.37,111.34,9.86]
[1744311663864,25.19240287,111.36,111.34,9.86]
[1744311664064,25.19240287,111.42,111.34,9.86]
[1744311664065,34.17200287,111.37,111.34,9.86]
[1744311664388,34.17200287,111.37,111.34,35.05240287]
[1744311664581,34.17200287,111.37,111.34,9.86]
[1744311664781,8.9796,111.37,111.34,35.05240287]
[1744311665089,8.9786,111.38,111.35,25.19240287]
[1744311665465,8.9766,111.4,111.36,25.19240287]
[1744311665682,34.16900287,111.4,111.36,25.19240287]
[1744311665991,34.17050287,111.39,111.36,25.19240287]
[1744311666197,8.975,111.42,111.36,25.19240287]
[1744311666371,25.19240287,111.41,111.37,25.19240287]
[1744311666860,25.19240287,111.4,111.36,25.19240287]
[1744311667059,25.19240287,111.41,111.36,25.19240287]
[1744311667392,25.19240287,111.41,111.37,25.19240287]
[1744311668261,25.19240287,111.4,111.37,25.19240287]